[Event "8th Mersin Open 2024"]
[Site "Mersin"]
[Date "2024.11.12"]
[Round "4"]
[White "Aliyev, Ravan"]
[Black "Abbasi Abeluie, Mohammad Mehdi"]
[Result "1/2-1/2"]
[ECO "A29"]
[WhiteElo "2338"]
[BlackElo "2218"]
[Annotator "RC"]
[PlyCount "157"]
[EventDate "2024.11.10"]
[EventType "swiss"]
[EventCountry "TUR"]
[SourceTitle "playchess.com"]
[Source "ChessBase"]
[SourceQuality "1"]
[TimeControl "5400+30"]

1. c4 {[%emt 0:09:00]} e5 {[%emt 0:02:00]} 2. Nc3 {[%emt 0:00:30]} Nf6 {[%emt 0:00:00]} 3. Nf3 {[%emt 0:00:30]} Nc6 {[%emt 0:00:00]} 4. g3 {[%emt 0:00:00]} d5 {[%emt 0:00:30]} 5. cxd5 {[%emt 0:00:00]} Nxd5 {[%emt 0:00:30]} 6. Bg2 {[%emt 0:00:30]} Nb6 {[%emt 0:00:30]} 7. O-O {[%emt 0:00:30]} Be7 {[%emt 0:00:30]} 8. a3 {[%emt 0:00:30]} O-O {[%emt 0:00:30]} 9. b4 {[%emt 0:00:00]} a6 {[%emt 0:06:30]} 10. d3 {[%emt 0:00:00]} Be6 {[%emt 0:00:30]} 11. Bb2 {[%emt 0:00:30]} f6 {[%emt 0:09:30]} 12. Rc1 {[%emt 0:01:30]} Qd7 {[%emt 0:01:30]} 13. Ne4 {[%emt 0:02:30]} Bd5 {[%emt 0:12:30]} 14. Qc2 {[%emt 0:17:30]} Rfd8 {[%emt 0:02:30]} 15. Rfd1 {[%emt 0:04:30]} Qe6 {[%emt 0:01:30]} 16. Ned2 {[%emt 0:00:30]} Qf7 {[%emt 0:01:30]} 17. e3 {[%emt 0:07:30]} Rac8 {[%emt 0:32:30]} 18. Bh3 {[%emt 0:15:30]} Be6 {[%emt 0:07:48]} 19. Bxe6 {[%emt 0:03:30]} Qxe6 {[%emt 0:00:02]} 20. d4 {[%emt 0:00:30]} exd4 {[%emt 0:00:44]} 21. Nxd4 {[%emt 0:04:30]} Nxd4 {[%emt 0:01:46]} 22. Bxd4 {[%emt 0:00:30]} Nd7 {[%emt 0:00:41]} 23. Qb3 {[%emt 0:14:36]} Qxb3 {[%emt 0:01:38]} 24. Nxb3 {[%emt 0:00:02]} b6 {[%emt 0:00:59]} 25. Rd2 {[%emt 0:00:06]} a5 {[%emt 0:01:39]} 26. bxa5 {[%emt 0:05:10]} Bxa3 {[%emt 0:00:47]} 27. Bb2 {[%emt 0:00:19]} Bxb2 {[%emt 0:07:56]} 28. Rxb2 {[%emt 0:00:03]} bxa5 {[%emt 0:00:19]} 29. Nxa5 {[%emt 0:00:06]} Ne5 {[%emt 0:00:00]} 30. Rbc2 {[%emt 0:08:11]} Rd7 {[%emt 0:01:38]} 31. Nc6 {[%emt 0:04:21]} Nxc6 {[%emt 0:02:21]} 32. Rxc6 {[%emt 0:00:30]} Kf7 {[%emt 0:00:30]} 33. g4 {[%emt 0:00:30]} Ke7 {[%emt 0:00:30]} 34. h4 {[%emt 0:00:30]} Kd8 {[%emt 0:00:30]} 35. Kg2 {[%emt 0:00:30]} Rb8 {[%emt 0:00:30]} 36. R1c2 {[%emt 0:00:30]} Rb5 {[%emt 0:00:30]} 37. h5 {[%emt 0:02:32]} h6 {[%emt 0:02:40]} 38. e4 {[%emt 0:00:30]} Rb3 {[%emt 0:00:24]} 39. R6c4 {[%emt 0:00:29]} Rbd3 {[%emt 0:01:16]} 40. Rc5 {[%emt 0:00:21]} R3d6 {[%emt 0:01:05]} 41. Kg3 {[%emt 0:00:41]} Re6 {[%emt 0:00:30]} 42. Kf4 {[%emt 0:00:55]} Rde7 {[%emt 0:00:01]} 43. f3 {[%emt 0:00:20]} Re5 {[%emt 0:00:04]} 44. R5c3 {[%emt 0:00:15]} Kc8 {[%emt 0:00:50]} 45. Rc4 {[%emt 0:00:28]} Rg5 {[%emt 0:00:38]} 46. R2c3 {[%emt 0:00:31]} Rge5 {[%emt 0:00:29]} 47. Ra3 {[%emt 0:00:26]} Rb5 {[%emt 0:00:32]} 48. Rac3 {[%emt 0:00:57]} Rbe5 {[%emt 0:00:07]} 49. Rd3 {[%emt 0:00:07]} Rb5 {[%emt 0:01:07]} 50. Ra3 {[%emt 0:00:07]} Kb7 {[%emt 0:00:35]} 51. Rac3 {[%emt 0:00:15]} Rbe5 {[%emt 0:00:15]} 52. Rb4+ {[%emt 0:01:33]} Kc8 {[%emt 0:00:01]} 53. Ra4 {[%emt 0:00:21]} Rb5 {[%emt 0:00:08]} 54. Kg3 {[%emt 0:00:15]} Kb7 {[%emt 0:00:59]} 55. Rac4 {[%emt 0:00:06]} Kc8 {[%emt 0:00:00]} 56. Kf2 {[%emt 0:00:33]} Kb7 {[%emt 0:00:22]} 57. Ke3 {[%emt 0:00:41]} Kc8 {[%emt 0:00:11]} 58. Rc5 {[%emt 0:00:38]} Rxc5 {[%emt 0:00:45]} 59. Rxc5 {[%emt 0:00:01]} Re5 {[%emt 0:00:26]} 60. Rc3 {[%emt 0:00:59]} Ra5 {[%emt 0:01:01]} 61. Rb3 {[%emt 0:00:32]} Re5 {[%emt 0:00:41]} 62. Ra3 {[%emt 0:00:48]} Kb7 {[%emt 0:00:30]} 63. Kd4 {[%emt 0:00:00]} Rb5 {[%emt 0:00:38]} 64. Rc3 {[%emt 0:00:38]} Kb6 {[%emt 0:00:42]} 65. f4 {[%emt 0:00:35]} c6 {[%emt 0:00:52]} 66. Rc4 {[%emt 0:00:29]} Kc7 {[%emt 0:00:25]} 67. e5 {[%emt 0:00:17]} fxe5+ {[%emt 0:01:25]} 68. fxe5 {[%emt 0:00:02]} Kd7 {[%emt 0:00:09]} 69. Ke4 {[%emt 0:00:20]} Rb7 {[%emt 0:00:50]} 70. Kf5 {[%emt 0:01:44]} Rc7 {[%emt 0:00:11]} 71. e6+ {[%emt 0:00:04]} Kd6 {[%emt 0:00:47]} 72. Rd4+ {[%emt 0:00:37]} Ke7 {[%emt 0:00:13]} 73. Ke5 {[%emt 0:00:00]} Ra7 {[%emt 0:00:06]} 74. Rc4 {[%emt 0:00:49]} Ra5+ {[%emt 0:00:39]} 75. Kf4 {[%emt 0:00:11]} Kxe6 {[%emt 0:00:10]} 76. Rxc6+ {[%emt 0:00:04]} Kf7 {[%emt 0:00:17]} 77. Rc7+ {[%emt 0:00:05]} Kf6 {[%emt 0:00:16]} 78. Rc6+ {[%emt 0:00:30]} Kf7 {[%emt 0:00:30]} 79. Rc4 {[%emt 0:00:00]} 1/2-1/2

[Event "8th Mersin Open 2024"]
[Site "Mersin"]
[Date "2024.11.12"]
[Round "4"]
[White "Baradaran Tamadon, Arian"]
[Black "Topuz, Mirac Melih"]
[Result "1-0"]
[ECO "B56"]
[WhiteElo "2323"]
[BlackElo "2097"]
[Annotator "RC"]
[PlyCount "88"]
[EventDate "2024.11.10"]
[EventType "swiss"]
[EventCountry "TUR"]
[SourceTitle "playchess.com"]
[Source "ChessBase"]
[SourceQuality "1"]
[TimeControl "5400+30"]

1. e4 {[%emt 0:01:00]} c5 {[%emt 0:03:00]} 2. Nf3 {[%emt 0:00:00]} d6 {[%emt 0:00:30]} 3. d4 {[%emt 0:00:00]} cxd4 {[%emt 0:00:30]} 4. Nxd4 {[%emt 0:00:30]} Nf6 {[%emt 0:00:00]} 5. Nc3 {[%emt 0:00:00]} Nc6 {[%emt 0:00:00]} 6. Bb5 {[%emt 0:01:00]} Bd7 {[%emt 0:00:00]} 7. Be3 {[%emt 0:00:30]} a6 {[%emt 0:02:00]} 8. Be2 {[%emt 0:00:30]} e6 {[%emt 0:01:30]} 9. Nb3 {[%emt 0:06:30]} b5 {[%emt 0:02:30]} 10. a3 {[%emt 0:01:30]} Be7 {[%emt 0:00:30]} 11. f4 {[%emt 0:03:30]} O-O {[%emt 0:09:30]} 12. Bf3 {[%emt 0:14:30]} Rb8 {[%emt 0:06:30]} 13. g4 {[%emt 0:03:30]} d5 {[%emt 0:15:30]} 14. exd5 {[%emt 0:13:30]} Nxd5 {[%emt 0:00:30]} 15. Nxd5 {[%emt 0:00:30]} Bh4+ {[%emt 0:00:30]} 16. Kf1 {[%emt 0:00:30]} exd5 {[%emt 0:00:00]} 17. Qd2 {[%emt 0:15:30]} Qf6 {[%emt 0:08:00]} 18. Nd4 {[%emt 0:05:30]} Rfe8 {[%emt 0:11:30]} 19. Nxc6 {[%emt 0:02:30]} Bxc6 {[%emt 0:02:30]} 20. Bd4 {[%emt 0:01:30]} Qh6 {[%emt 0:05:30]} 21. Rg1 {[%emt 0:06:30]} b4 {[%emt 0:17:14]} 22. g5 {[%emt 0:05:49]} Qe6 {[%emt 0:01:16]} 23. a4 {[%emt 0:00:01]} b3 {[%emt 0:02:50]} 24. Rg4 {[%emt 0:03:47]} bxc2 {[%emt 0:05:22]} 25. Rxh4 {[%emt 0:00:30]} Rb3 {[%emt 0:00:30]} 26. Kf2 {[%emt 0:02:12]} Bxa4 {[%emt 0:00:56]} 27. Rc1 {[%emt 0:04:48]} Bb5 {[%emt 0:04:00]} 28. Bc3 {[%emt 0:03:13]} d4 {[%emt 0:01:19]} 29. Qxd4 {[%emt 0:00:36]} Rxc3 {[%emt 0:00:25]} 30. bxc3 {[%emt 0:00:59]} Be2 {[%emt 0:00:36]} 31. Rxc2 {[%emt 0:03:50]} Bxf3 {[%emt 0:00:49]} 32. Kxf3 {[%emt 0:00:02]} Qe1 {[%emt 0:00:10]} 33. Rg4 {[%emt 0:00:49]} Qb1 {[%emt 0:00:30]} 34. Rgg2 {[%emt 0:00:30]} Qf1+ {[%emt 0:00:30]} 35. Rcf2 {[%emt 0:00:30]} Qb1 {[%emt 0:00:30]} 36. Re2 {[%emt 0:00:00]} Qf1+ {[%emt 0:00:37]} 37. Qf2 {[%emt 0:00:00]} Qd1 {[%emt 0:00:00]} 38. Kg3 {[%emt 0:00:01]} Rc8 {[%emt 0:00:00]} 39. Re3 {[%emt 0:00:02]} h5 {[%emt 0:00:01]} 40. Qe2 {[%emt 0:00:00]} Qd7 {[%emt 0:00:45]} 41. Qxh5 {[%emt 0:00:05]} Rb8 {[%emt 0:00:24]} 42. g6 {[%emt 0:00:09]} fxg6 {[%emt 0:00:40]} 43. Qxg6 {[%emt 0:00:30]} Qd1 {[%emt 0:00:06]} 44. Re7 {[%emt 0:00:37]} Qd3+ {[%emt 0:00:13]} 1-0

[Event "8th Mersin Open 2024"]
[Site "Mersin"]
[Date "2024.11.12"]
[Round "4"]
[White "Gurbanov, Ismayil"]
[Black "Schekachikhin, Maksim"]
[Result "0-1"]
[ECO "C07"]
[WhiteElo "2261"]
[BlackElo "2353"]
[Annotator "RC"]
[PlyCount "48"]
[EventDate "2024.11.10"]
[EventType "swiss"]
[EventCountry "TUR"]
[SourceTitle "playchess.com"]
[Source "ChessBase"]
[SourceQuality "1"]
[TimeControl "5400+30"]

1. e4 {[%emt 0:09:00]} e6 {[%emt 0:01:00]} 2. d4 {[%emt 0:00:00]} d5 {[%emt 0:00:30]} 3. Nd2 {[%emt 0:01:00]} c5 {[%emt 0:00:00]} 4. Ngf3 {[%emt 0:00:00]} cxd4 {[%emt 0:00:00]} 5. exd5 {[%emt 0:00:00]} Qxd5 {[%emt 0:01:30]} 6. Bc4 {[%emt 0:00:30]} Qd7 {[%emt 0:00:00]} 7. O-O {[%emt 0:00:30]} Nc6 {[%emt 0:01:00]} 8. Nb3 {[%emt 0:00:00]} a6 {[%emt 0:00:30]} 9. Nbxd4 {[%emt 0:01:00]} Nxd4 {[%emt 0:00:00]} 10. Nxd4 {[%emt 0:00:30]} Bc5 {[%emt 0:00:00]} 11. Be3 {[%emt 0:01:30]} Qc7 {[%emt 0:03:30]} 12. Re1 {[%emt 0:27:30]} Nf6 {[%emt 0:05:30]} 13. Nf5 {[%emt 0:13:30]} O-O {[%emt 0:03:30]} 14. Nxg7 {[%emt 0:00:30]} Bxe3 {[%emt 0:22:30]} 15. Rxe3 {[%emt 0:00:30]} Kxg7 {[%emt 0:01:30]} 16. Qd4 {[%emt 0:04:30]} Rd8 {[%emt 0:08:30]} 17. Qc3 {[%emt 0:04:30]} Qe7 {[%emt 0:11:30]} 18. Qe5 {[%emt 0:10:30]} b5 {[%emt 0:03:30]} 19. Bb3 {[%emt 0:18:14]} Bb7 {[%emt 0:01:30]} 20. c3 {[%emt 0:00:48]} Rac8 {[%emt 0:01:30]} 21. Qg5+ {[%emt 0:03:09]} Kh8 {[%emt 0:00:30]} 22. Rh3 {[%emt 0:00:02]} Rg8 {[%emt 0:03:30]} 23. Rxh7+ {[%emt 0:00:39]} Kxh7 {[%emt 0:00:30]} 24. Bc2+ {[%emt 0:00:30]} Rg6 {[%emt 0:00:00]} 0-1

[Event "8th Mersin Open 2024"]
[Site "Mersin"]
[Date "2024.11.12"]
[Round "4"]
[White "Sanz Wawer, Daniel"]
[Black "Ebrahimi Herab, Hamidreza"]
[Result "0-1"]
[ECO "B94"]
[WhiteElo "2254"]
[BlackElo "2386"]
[Annotator "RC"]
[PlyCount "92"]
[EventDate "2024.11.10"]
[EventType "swiss"]
[EventCountry "TUR"]
[SourceTitle "playchess.com"]
[Source "ChessBase"]
[SourceQuality "1"]
[TimeControl "5400+30"]

1. e4 {[%emt 0:01:00]} c5 {[%emt 0:02:00]} 2. Nf3 {[%emt 0:00:00]} d6 {[%emt 0:00:30]} 3. d4 {[%emt 0:00:00]} cxd4 {[%emt 0:00:30]} 4. Nxd4 {[%emt 0:00:00]} Nf6 {[%emt 0:00:00]} 5. Nc3 {[%emt 0:00:00]} a6 {[%emt 0:00:00]} 6. Bg5 {[%emt 0:00:30]} Nbd7 {[%emt 0:01:30]} 7. a4 {[%emt 0:01:30]} e6 {[%emt 0:02:30]} 8. Qf3 {[%emt 0:02:30]} Be7 {[%emt 0:03:30]} 9. Be2 {[%emt 0:03:30]} Qc7 {[%emt 0:03:30]} 10. O-O {[%emt 0:02:30]} O-O {[%emt 0:09:30]} 11. Qg3 {[%emt 0:04:30]} Kh8 {[%emt 0:05:30]} 12. Rad1 {[%emt 0:05:30]} h6 {[%emt 0:06:30]} 13. Be3 {[%emt 0:20:30]} Nc5 {[%emt 0:02:30]} 14. Bd3 {[%emt 0:01:30]} e5 {[%emt 0:11:30]} 15. Nf5 {[%emt 0:13:30]} Bxf5 {[%emt 0:01:30]} 16. exf5 {[%emt 0:00:30]} d5 {[%emt 0:24:30]} 17. Be2 {[%emt 0:07:30]} Nce4 {[%emt 0:04:27]} 18. Nxe4 {[%emt 0:00:30]} dxe4 {[%emt 0:00:00]} 19. c3 {[%emt 0:05:30]} Rad8 {[%emt 0:00:48]} 20. Rxd8 {[%emt 0:05:30]} Rxd8 {[%emt 0:00:10]} 21. Bd1 {[%emt 0:03:30]} Nd5 {[%emt 0:03:12]} 22. Bb3 {[%emt 0:01:30]} Nf4 {[%emt 0:00:56]} 23. Kh1 {[%emt 0:08:52]} Bg5 {[%emt 0:02:07]} 24. Qg4 {[%emt 0:01:23]} Bf6 {[%emt 0:03:48]} 25. Rd1 {[%emt 0:02:54]} Rd6 {[%emt 0:01:57]} 26. Rxd6 {[%emt 0:00:56]} Qxd6 {[%emt 0:00:27]} 27. Qd1 {[%emt 0:02:35]} Qxd1+ {[%emt 0:02:22]} 28. Bxd1 {[%emt 0:00:30]} Nd3 {[%emt 0:00:06]} 29. b4 {[%emt 0:03:19]} Bg5 {[%emt 0:00:08]} 30. Kg1 {[%emt 0:00:00]} Bxe3 {[%emt 0:04:38]} 31. fxe3 {[%emt 0:00:21]} a5 {[%emt 0:00:30]} 32. Bb3 {[%emt 0:00:30]} axb4 {[%emt 0:00:30]} 33. cxb4 {[%emt 0:00:30]} Nxb4 {[%emt 0:00:30]} 34. Bxf7 {[%emt 0:00:30]} b6 {[%emt 0:00:30]} 35. Kf1 {[%emt 0:00:30]} Nd3 {[%emt 0:00:30]} 36. Ke2 {[%emt 0:00:30]} Nc5 {[%emt 0:00:30]} 37. Kd2 {[%emt 0:00:30]} Nxa4 {[%emt 0:00:30]} 38. Kc2 {[%emt 0:00:30]} Nc5 {[%emt 0:00:30]} 39. Kc3 {[%emt 0:01:44]} Nb7 {[%emt 0:01:44]} 40. g4 {[%emt 0:01:41]} Nd6 {[%emt 0:00:05]} 41. Bd5 {[%emt 0:00:00]} h5 {[%emt 0:00:37]} 42. h3 {[%emt 0:01:11]} Kh7 {[%emt 0:00:08]} 43. g5 {[%emt 0:00:34]} Nxf5 {[%emt 0:00:30]} 44. Bxe4 {[%emt 0:00:30]} g6 {[%emt 0:00:00]} 45. Kb4 {[%emt 0:00:30]} Nxe3 {[%emt 0:00:00]} 46. Kb5 {[%emt 0:00:04]} Nd1 0-1

[Event "8th Mersin Open 2024"]
[Site "Mersin"]
[Date "2024.11.12"]
[Round "4"]
[White "Dogan, Nazmi Can"]
[Black "Uzdemir, Ali Poyraz"]
[Result "1-0"]
[ECO "B62"]
[WhiteElo "2218"]
[BlackElo "2081"]
[Annotator "RC"]
[PlyCount "151"]
[EventDate "2024.11.10"]
[EventType "swiss"]
[EventCountry "TUR"]
[SourceTitle "playchess.com"]
[Source "ChessBase"]
[SourceQuality "1"]
[TimeControl "5400+30"]

1. e4 {[%emt 0:01:00]} c5 {[%emt 0:01:00]} 2. Nf3 {[%emt 0:00:00]} d6 {[%emt 0:00:30]} 3. d4 {[%emt 0:00:00]} cxd4 {[%emt 0:00:00]} 4. Nxd4 {[%emt 0:00:30]} Nf6 {[%emt 0:00:00]} 5. Nc3 {[%emt 0:00:30]} Nc6 {[%emt 0:00:00]} 6. Bg5 {[%emt 0:00:00]} e6 {[%emt 0:00:00]} 7. Bb5 {[%emt 0:00:00]} Bd7 {[%emt 0:00:00]} 8. Qd3 {[%emt 0:00:30]} Be7 {[%emt 0:11:00]} 9. Bxc6 {[%emt 0:02:30]} bxc6 {[%emt 0:00:30]} 10. O-O-O {[%emt 0:01:30]} O-O {[%emt 0:09:30]} 11. Nb3 {[%emt 0:00:30]} d5 {[%emt 0:07:30]} 12. e5 {[%emt 0:00:30]} Ng4 {[%emt 0:00:30]} 13. Bxe7 {[%emt 0:01:30]} Qxe7 {[%emt 0:05:30]} 14. Qd4 {[%emt 0:00:30]} Nh6 {[%emt 0:00:30]} 15. f4 {[%emt 0:03:30]} f6 {[%emt 0:19:30]} 16. Rde1 {[%emt 0:15:30]} fxe5 {[%emt 0:02:30]} 17. Rxe5 {[%emt 0:02:30]} Nf5 {[%emt 0:00:30]} 18. Qc5 {[%emt 0:01:30]} Qh4 {[%emt 0:02:30]} 19. Ne2 {[%emt 0:02:30]} Ne7 {[%emt 0:06:30]} 20. g3 {[%emt 0:07:30]} Qf6 {[%emt 0:00:30]} 21. Qd4 {[%emt 0:16:30]} Ng6 {[%emt 0:11:30]} 22. Re3 {[%emt 0:00:00]} Rf7 {[%emt 0:00:30]} 23. Re1 {[%emt 0:04:00]} Re7 {[%emt 0:08:45]} 24. Nc5 {[%emt 0:09:30]} Rae8 {[%emt 0:01:03]} 25. Nxd7 {[%emt 0:15:35]} Rxd7 {[%emt 0:00:04]} 26. Qxf6 {[%emt 0:00:16]} gxf6 {[%emt 0:00:05]} 27. Nd4 {[%emt 0:02:01]} e5 {[%emt 0:00:20]} 28. fxe5 {[%emt 0:00:40]} fxe5 {[%emt 0:00:38]} 29. Nxc6 {[%emt 0:00:03]} e4 {[%emt 0:00:00]} 30. Rd1 {[%emt 0:01:12]} Re6 {[%emt 0:04:39]} 31. Nd4 {[%emt 0:01:15]} Rf6 {[%emt 0:01:34]} 32. Re2 {[%emt 0:00:18]} Ne5 {[%emt 0:00:47]} 33. b3 {[%emt 0:00:16]} a6 {[%emt 0:00:49]} 34. Red2 {[%emt 0:02:50]} Ng4 {[%emt 0:03:43]} 35. Re1 {[%emt 0:03:01]} Rdf7 {[%emt 0:01:08]} 36. Rde2 {[%emt 0:02:27]} h5 {[%emt 0:02:52]} 37. h3 {[%emt 0:01:23]} Ne5 {[%emt 0:00:57]} 38. Rg2 {[%emt 0:00:30]} Kh7 {[%emt 0:00:49]} 39. g4 {[%emt 0:02:37]} hxg4 {[%emt 0:00:46]} 40. hxg4 {[%emt 0:00:30]} Rf2 {[%emt 0:00:00]} 41. Re2 {[%emt 0:00:07]} Rxe2 {[%emt 0:00:28]} 42. Nxe2 {[%emt 0:00:12]} Kg6 {[%emt 0:00:57]} 43. Nc3 {[%emt 0:00:19]} Rd7 {[%emt 0:00:33]} 44. Rd2 {[%emt 0:00:31]} Kg5 {[%emt 0:00:31]} 45. Nxd5 {[%emt 0:00:48]} Nf3 {[%emt 0:00:55]} 46. Rd1 {[%emt 0:00:15]} Kh4 {[%emt 0:00:04]} 47. Ne3 {[%emt 0:00:13]} Rc7 {[%emt 0:00:26]} 48. Rd6 {[%emt 0:00:20]} Kg3 {[%emt 0:00:32]} 49. Re6 {[%emt 0:01:36]} Ng5 {[%emt 0:00:12]} 50. Rg6 {[%emt 0:00:00]} Nf3 {[%emt 0:00:33]} 51. Re6 {[%emt 0:00:57]} Ng5 {[%emt 0:00:12]} 52. Rf6 {[%emt 0:00:57]} Nf3 {[%emt 0:00:16]} 53. Rxa6 {[%emt 0:01:42]} Kf2 {[%emt 0:00:39]} 54. Nd1+ {[%emt 0:00:04]} Ke2 {[%emt 0:01:02]} 55. Re6 {[%emt 0:00:14]} Rxc2+ {[%emt 0:01:03]} 56. Kxc2 {[%emt 0:00:30]} Nd4+ {[%emt 0:00:00]} 57. Kc3 {[%emt 0:01:31]} Nxe6 {[%emt 0:00:05]} 58. Nb2 {[%emt 0:00:00]} Kf3 {[%emt 0:00:06]} 59. Nc4 {[%emt 0:00:09]} Kxg4 {[%emt 0:00:22]} 60. a4 {[%emt 0:00:13]} Kf5 {[%emt 0:01:24]} 61. a5 {[%emt 0:00:07]} e3 {[%emt 0:00:34]} 62. Nxe3+ {[%emt 0:00:07]} Ke5 {[%emt 0:00:15]} 63. Kc4 {[%emt 0:00:06]} Kd6 {[%emt 0:00:00]} 64. b4 {[%emt 0:00:19]} Kc6 {[%emt 0:00:21]} 65. b5+ {[%emt 0:00:36]} Kb7 {[%emt 0:00:02]} 66. Nf5 {[%emt 0:00:00]} Kc7 {[%emt 0:00:28]} 67. Nd4 {[%emt 0:00:23]} Nf8 {[%emt 0:01:10]} 68. b6+ {[%emt 0:00:07]} Kc8 {[%emt 0:00:54]} 69. Kb5 {[%emt 0:00:12]} Nd7 {[%emt 0:00:12]} 70. Ka6 {[%emt 0:01:15]} Kb8 {[%emt 0:01:28]} 71. Nc6+ {[%emt 0:00:30]} Kc8 {[%emt 0:00:00]} 72. Ka7 {[%emt 0:00:00]} Nc5 {[%emt 0:00:16]} 73. Ne7+ {[%emt 0:00:20]} Kd7 {[%emt 0:00:57]} 74. b7 {[%emt 0:00:06]} Nxb7 {[%emt 0:00:14]} 75. Kxb7 {[%emt 0:00:30]} Kxe7 {[%emt 0:00:00]} 76. a6 {[%emt 0:00:00]} 1-0

[Event "8th Mersin Open 2024"]
[Site "Mersin"]
[Date "2024.11.12"]
[Round "4"]
[White "Yildiz, Serdar Murat"]
[Black "Tirpan, Ceren"]
[Result "1-0"]
[ECO "B41"]
[WhiteElo "2201"]
[BlackElo "2053"]
[Annotator "RC"]
[PlyCount "75"]
[EventDate "2024.11.10"]
[EventType "swiss"]
[EventCountry "TUR"]
[SourceTitle "playchess.com"]
[Source "ChessBase"]
[SourceQuality "1"]
[TimeControl "5400+30"]

1. e4 c5 2. Nf3 e6 3. d4 cxd4 4. Nxd4 a6 5. c4 Nf6 6. Nc3 Bb4 7. Qd3 O-O 8. e5 Ne8 9. a3 Bxc3+ 10. Qxc3 d6 11. b4 dxe5 12. Nb3 Nc6 13. Bb2 Qh4 14. Be2 Nd6 15. O-O Nf5 16. Rae1 Ncd4 17. Bd1 f6 18. a4 Rd8 19. Bc1 Nxb3 20. Bxb3 Qd4 21. Qc2 Qb6 22. Qc3 Qd4 23. Qh3 Qd3 24. Rd1 e4 25. Bc2 Qd4 26. Rxd4 Rxd4 27. Rd1 e5 28. Qc3 Be6 29. Rxd4 exd4 30. Qe1 Re8 31. Qxe4 Bf7 32. Qxe8+ Bxe8 33. Bxf5 Bxa4 34. Bb2 Bb3 35. Bd3 Kf7 36. Bxd4 Ke7 37. Kf1 Kd6 38. Ke1 1-0

[Event "8th Mersin Open 2024"]
[Site "Mersin"]
[Date "2024.11.12"]
[Round "4"]
[White "Zerey, Demhat"]
[Black "Mammadova, Gulnar"]
[Result "1/2-1/2"]
[ECO "D02"]
[WhiteElo "2194"]
[BlackElo "2328"]
[Annotator "RC"]
[PlyCount "149"]
[EventDate "2024.11.10"]
[EventType "swiss"]
[EventCountry "TUR"]
[SourceTitle "playchess.com"]
[Source "ChessBase"]
[SourceQuality "1"]
[TimeControl "5400+30"]

1. d4 {[%emt 0:01:00]} Nf6 {[%emt 0:01:00]} 2. Bf4 {[%emt 0:00:30]} e6 {[%emt 0:00:30]} 3. e3 {[%emt 0:00:30]} d5 {[%emt 0:00:30]} 4. Nf3 {[%emt 0:01:30]} c5 {[%emt 0:00:00]} 5. Nbd2 {[%emt 0:00:00]} Nc6 {[%emt 0:01:00]} 6. c3 {[%emt 0:00:00]} Be7 {[%emt 0:00:00]} 7. Bd3 {[%emt 0:02:30]} Nh5 {[%emt 0:00:00]} 8. Bg3 {[%emt 0:06:30]} cxd4 {[%emt 0:03:30]} 9. exd4 {[%emt 0:05:30]} Nxg3 {[%emt 0:00:30]} 10. hxg3 {[%emt 0:00:30]} h6 {[%emt 0:01:30]} 11. O-O {[%emt 0:00:30]} a5 {[%emt 0:02:30]} 12. a4 {[%emt 0:06:30]} O-O {[%emt 0:01:30]} 13. Re1 {[%emt 0:01:30]} Bd7 {[%emt 0:02:30]} 14. Bb5 {[%emt 0:06:30]} Bd6 {[%emt 0:02:30]} 15. Qe2 {[%emt 0:05:30]} Qc7 {[%emt 0:03:30]} 16. Rac1 {[%emt 0:08:30]} Rae8 {[%emt 0:04:30]} 17. Nb3 {[%emt 0:06:30]} Qb6 {[%emt 0:05:30]} 18. c4 {[%emt 0:07:30]} dxc4 {[%emt 0:01:30]} 19. Nbd2 {[%emt 0:01:30]} Bb4 {[%emt 0:04:30]} 20. Nxc4 {[%emt 0:00:30]} Qa7 {[%emt 0:02:30]} 21. Red1 {[%emt 0:00:00]} Rd8 {[%emt 0:02:30]} 22. g4 {[%emt 0:05:00]} Be7 {[%emt 0:05:30]} 23. Ne3 {[%emt 0:06:30]} Bf6 {[%emt 0:06:30]} 24. d5 {[%emt 0:07:34]} Nd4 {[%emt 0:03:30]} 25. Nxd4 {[%emt 0:00:58]} Bxd4 {[%emt 0:00:00]} 26. Bxd7 {[%emt 0:00:00]} Rxd7 {[%emt 0:06:00]} 27. dxe6 {[%emt 0:00:57]} fxe6 {[%emt 0:00:30]} 28. Qc4 {[%emt 0:02:22]} Qb6 {[%emt 0:02:30]} 29. Rc2 {[%emt 0:00:43]} Rdd8 {[%emt 0:04:30]} 30. Re1 {[%emt 0:05:51]} Kh8 {[%emt 0:02:30]} 31. g3 {[%emt 0:01:52]} Rd6 {[%emt 0:03:30]} 32. Qe2 {[%emt 0:01:43]} Qb4 {[%emt 0:03:30]} 33. g5 {[%emt 0:02:28]} hxg5 {[%emt 0:03:30]} 34. Kg2 {[%emt 0:01:50]} Bxe3 {[%emt 0:02:30]} 35. Rh1+ {[%emt 0:01:36]} Kg8 {[%emt 0:00:30]} 36. Qxe3 {[%emt 0:00:00]} Qxa4 {[%emt 0:00:30]} 37. Rc5 {[%emt 0:00:10]} g4 {[%emt 0:03:14]} 38. Rc7 {[%emt 0:02:43]} Qb5 {[%emt 0:02:17]} 39. Qe4 {[%emt 0:01:44]} Rxf2+ {[%emt 0:05:13]} 40. Kxf2 {[%emt 0:00:04]} Qxb2+ {[%emt 0:00:00]} 41. Rc2 {[%emt 0:00:24]} Rd2+ {[%emt 0:00:55]} 42. Rxd2 {[%emt 0:00:07]} Qxd2+ {[%emt 0:00:13]} 43. Qe2 {[%emt 0:00:48]} Qd4+ {[%emt 0:00:02]} 44. Kg2 {[%emt 0:00:30]} Qd5+ {[%emt 0:00:30]} 45. Kh2 {[%emt 0:00:00]} Qh5+ {[%emt 0:00:00]} 46. Kg1 {[%emt 0:00:25]} Qc5+ {[%emt 0:00:00]} 47. Qf2 {[%emt 0:00:20]} Qd5 {[%emt 0:00:00]} 48. Qc2 {[%emt 0:01:35]} Qe5 {[%emt 0:04:35]} 49. Qh7+ {[%emt 0:01:59]} Kf8 {[%emt 0:00:30]} 50. Qh8+ {[%emt 0:00:12]} Ke7 {[%emt 0:00:00]} 51. Qh4+ {[%emt 0:00:15]} g5 {[%emt 0:02:18]} 52. Qh7+ {[%emt 0:00:05]} Kd6 {[%emt 0:00:15]} 53. Qd3+ {[%emt 0:00:10]} Kc7 {[%emt 0:02:01]} 54. Rh7+ {[%emt 0:00:35]} Kb8 {[%emt 0:00:04]} 55. Rf7 {[%emt 0:00:30]} a4 {[%emt 0:00:54]} 56. Rf2 {[%emt 0:01:28]} Qc5 {[%emt 0:01:44]} 57. Kg2 {[%emt 0:00:45]} Ka7 {[%emt 0:00:51]} 58. Ra2 {[%emt 0:01:12]} b5 {[%emt 0:01:34]} 59. Kf1 {[%emt 0:00:32]} Kb6 {[%emt 0:01:27]} 60. Ke2 {[%emt 0:00:30]} Ka5 {[%emt 0:01:29]} 61. Qd8+ {[%emt 0:00:56]} Ka6 {[%emt 0:00:01]} 62. Rd2 {[%emt 0:00:00]} Qe5+ {[%emt 0:01:42]} 63. Kf2 {[%emt 0:00:05]} Qf5+ {[%emt 0:00:05]} 64. Kg1 {[%emt 0:00:20]} b4 {[%emt 0:01:35]} 65. Qb8 {[%emt 0:01:05]} Qb1+ {[%emt 0:00:19]} 66. Kh2 {[%emt 0:00:37]} Qh7+ {[%emt 0:00:30]} 67. Kg1 {[%emt 0:00:30]} Qb1+ {[%emt 0:00:00]} 68. Kf2 {[%emt 0:00:00]} Qf5+ {[%emt 0:00:00]} 69. Ke1 {[%emt 0:00:28]} Qb1+ {[%emt 0:00:15]} 70. Ke2 {[%emt 0:00:08]} Qe4+ {[%emt 0:00:00]} 71. Kf1 {[%emt 0:00:50]} Qb1+ {[%emt 0:00:30]} 72. Kf2 {[%emt 0:01:16]} Qf5+ {[%emt 0:00:02]} 73. Ke1 {[%emt 0:00:19]} Qb1+ {[%emt 0:00:30]} 74. Kf2 {[%emt 0:00:30]} Qf5+ {[%emt 0:00:00]} 75. Ke1 {[%emt 0:00:00]} 1/2-1/2